bitfinex-derivatives/quotes_BTCF0:USTF0_20240903
["timestamp","ask_amount","ask_price","bid_price","bid_amount"]
[1725396971792,0.75348,58242.0,58241.0,0.00125761]
[1725396972005,0.75548,58242.0,58241.0,0.00225761]
[1725396972203,0.75448,58242.0,58241.0,0.00225761]
[1725396980414,0.66861,58242.0,58241.0,0.00225761]
[1725396981708,0.7321186,58242.0,58241.0,0.00025761]
[1725396981911,0.7371186,58242.0,58241.0,0.00225761]
[1725396982408,0.66861,58242.0,58241.0,0.00225761]
[1725396982915,0.73709779,58242.0,58241.0,0.00225761]
[1725396983297,0.66861,58242.0,58241.0,0.00225761]
[1725396983706,0.66661,58242.0,58241.0,0.00125761]
[1725396983912,0.66861,58242.0,58241.0,0.00225761]
[1725396986207,0.69645365,58242.0,58241.0,0.00225761]
[1725396986598,1.81153365,58242.0,58241.0,0.00225761]
[1725396986805,0.085881,58234.0,58231.0,0.02462777]
[1725396987005,0.085881,58234.0,58227.0,0.07250969]
[1725396987006,0.257658,58231.0,58230.0,0.02062777]
[1725396987213,0.17179,58225.0,58224.0,0.39385604]
[1725396987417,1.67179,58225.0,58224.0,0.39384856]
[1725396987612,1.67079,58225.0,58224.0,0.39384856]
[1725396988019,1.66979,58225.0,58224.0,0.39384856]
[1725396988318,0.16879,58225.0,58224.0,0.32534635]
[1725396988919,0.16979,58225.0,58224.0,0.32534635]
[1725396989617,0.16979,58225.0,58224.0,0.24]
[1725396989810,0.17079,58225.0,58224.0,0.24]
[1725396990120,0.084895,58225.0,58221.0,0.24580221]
[1725396990308,0.0004,58222.0,58221.0,0.24580221]
[1725396991310,0.086299,58222.0,58221.0,0.16190221]
[1725396991512,0.086299,58222.0,58221.0,0.16390221]
[1725396994907,0.086299,58222.0,58221.0,0.004]
[1725396995702,0.172198,58222.0,58221.0,0.004]
[1725396995904,0.498097,58222.0,58221.0,0.004]
[1725396996106,0.258097,58222.0,58221.0,0.004]
[1725397000019,0.172198,58222.0,58221.0,0.244]
[1725397000223,0.086299,58222.0,58221.0,0.244]
[1725397008125,0.086299,58222.0,58221.0,0.004]
[1725397008126,0.858897,58222.0,58221.0,0.004]
[1725397009021,2.358897,58222.0,58221.0,0.004]
[1725397009226,2.272998,58222.0,58221.0,0.004]
[1725397009534,1.947099,58222.0,58221.0,0.089901]
[1725397009718,0.086299,58222.0,58221.0,0.089901]
[1725397010223,0.086299,58222.0,58221.0,0.004]
[1725397013624,0.172198,58222.0,58221.0,0.004]
[1725397014828,0.498097,58222.0,58221.0,0.004]
[1725397018016,0.52594836,58222.0,58221.0,0.004]
[1725397020216,0.498097,58222.0,58221.0,0.004]
[1725397020630,0.258097,58222.0,58221.0,0.004]
[1725397021731,0.858897,58222.0,58221.0,0.004]
[1725397021924,0.51528,58221.0,58214.0,0.004]
[1725397022128,0.085912,58213.0,58210.0,0.07256695]
[1725397022321,0.085912,58213.0,58212.0,0.6008]
[1725397022322,0.086312,58213.0,58212.0,0.6008]
[1725397022519,0.085912,58213.0,58212.0,0.6008]
[1725397023127,0.076912,58213.0,58212.0,0.686714]
[1725397023333,0.076912,58213.0,58212.0,0.77223477]
[1725397023525,0.067912,58213.0,58212.0,0.77223477]
[1725397023727,0.067912,58213.0,58212.0,0.686714]
[1725397023920,0.068912,58213.0,58212.0,0.686714]
[1725397024228,0.070912,58213.0,58212.0,0.6008]
[1725397033034,0.070912,58213.0,58212.0,0.3608]
[1725397033348,0.070912,58213.0,58212.0,0.4293878]
[1725397035140,0.22550146,58213.0,58212.0,0.3608]
[1725397035340,0.396824,58213.0,58212.0,0.3608]
[1725397035651,0.156824,58213.0,58212.0,0.3608]
[1725397036742,0.08592,58208.0,58207.0,0.08990013]
[1725397036948,0.08632,58208.0,58207.0,0.22102738]
[1725397038144,0.08632,58208.0,58207.0,0.13510638]
[1725397039340,0.08632,58208.0,58207.0,0.13810638]
[1725397039552,0.0004,58208.0,58207.0,0.22702738]
[1725397039752,0.00025761,58218.0,58217.0,0.085907]
[1725397039942,0.00025761,58218.0,58217.0,1.047907]
[1725397040136,0.00025761,58218.0,58217.0,2.163227]
[1725397040340,0.00025761,58218.0,58217.0,1.563227]
[1725397040955,0.01625761,58218.0,58217.0,1.565227]
[1725397041750,0.01625761,58218.0,58217.0,1.049907]
[1725397042350,0.01325761,58218.0,58217.0,1.048907]
[1725397042643,0.00525761,58218.0,58217.0,1.047907]
[1725397042849,0.01025761,58218.0,58217.0,1.047907]
[1725397044644,0.01025761,58218.0,58217.0,1.563227]
[1725397044951,0.01025761,58218.0,58217.0,1.56701645]
[1725397046952,0.01025761,58218.0,58217.0,1.05169645]
[1725397049348,0.1030175,58224.0,58223.0,0.085898]
[1725397049542,0.0617,58238.0,58223.0,0.6012]
[1725397049760,0.0617,58238.0,58237.0,0.687077]
[1725397050052,0.0617,58238.0,58237.0,0.686677]
[1725397051053,0.13735792,58239.0,58238.0,0.085876]
[1725397051542,0.13735792,58239.0,58238.0,0.086276]
[1725397052747,0.14735792,58239.0,58238.0,0.087276]
[1725397052953,0.15135792,58239.0,58238.0,0.088276]
[1725397057054,0.014,58239.0,58238.0,0.088276]
[1725397057849,0.014,58239.0,58238.0,0.449076]
[1725397061458,0.014,58239.0,58238.0,0.3632]
[1725397061862,0.099874,58239.0,58238.0,0.3632]
[1725397063755,0.089874,58239.0,58238.0,0.3632]
[1725397063966,0.097874,58239.0,58238.0,0.3632]
[1725397064166,0.093874,58239.0,58238.0,0.3622]
[1725397064371,0.101874,58239.0,58238.0,0.3632]
[1725397065565,0.093874,58239.0,58238.0,0.3622]
[1725397065764,0.100874,58239.0,58238.0,0.3632]
[1725397066166,0.099874,58239.0,58238.0,0.3632]
[1725397067262,0.005,58239.0,58238.0,0.447076]
[1725397067568,0.012,58239.0,58238.0,0.448076]
[1725397067965,0.014,58239.0,58238.0,0.449076]
[1725397068768,0.013,58239.0,58238.0,0.449076]
[1725397070275,0.006,58239.0,58238.0,0.447076]
[1725397071065,0.005,58239.0,58238.0,0.447076]
[1725397071873,0.006,58239.0,58238.0,0.447076]
[1725397073177,0.007,58239.0,58238.0,0.447076]
[1725397073376,0.004,58239.0,58238.0,0.447076]
[1725397073677,0.006,58239.0,58238.0,0.447076]
[1725397074185,0.002,58239.0,58238.0,0.447076]
[1725397074366,0.006,58239.0,58238.0,0.447076]
[1725397074869,0.007,58239.0,58238.0,0.447076]
[1725397075871,0.008,58239.0,58238.0,0.447076]
[1725397076273,0.0935309,58239.0,58238.0,0.447076]
[1725397076472,0.0955309,58239.0,58238.0,0.447076]
[1725397076969,0.0905309,58239.0,58238.0,0.447076]
[1725397077170,0.0965309,58239.0,58238.0,0.447076]
[1725397077373,0.20558571,58239.0,58238.0,0.3612]
[1725397077571,0.81157971,58239.0,58238.0,0.3612]
[1725397078079,0.39645971,58239.0,58238.0,0.3612]
[1725397078272,0.91157971,58239.0,58238.0,0.3612]
[1725397078781,0.29645971,58239.0,58238.0,0.3612]
[1725397079374,0.32962853,58239.0,58238.0,0.3612]
[1725397080172,0.33345839,58239.0,58238.0,0.6012]
[1725397080474,0.18657523,58239.0,58238.0,0.6012]
[1725397080679,0.25523883,58239.0,58238.0,0.6012]
[1725397080884,0.18657523,58239.0,58238.0,0.6012]
[1725397081585,0.096874,58239.0,58238.0,0.687076]
[1725397081972,0.14836447,58239.0,58238.0,0.687076]
[1725397082174,0.096874,58239.0,58238.0,0.687076]
[1725397082879,0.096874,58239.0,58238.0,0.6012]
[1725397083781,0.096874,58239.0,58238.0,0.6051298]
[1725397088391,0.096874,58239.0,58238.0,0.6012]
[1725397088784,0.15788129,58239.0,58238.0,0.6012]
[1725397092388,0.12471357,58239.0,58238.0,0.687076]
[1725397092592,0.03883957,58239.0,58238.0,0.687076]
[1725397094083,0.07200563,58239.0,58238.0,0.687076]
[1725397094287,0.03883925,58239.0,58238.0,0.687076]
[1725397095495,0.0625099,58239.0,58238.0,0.90364536]
[1725397096484,0.0625099,58239.0,58238.0,0.81792238]
[1725397096688,0.011,58239.0,58238.0,0.687076]
[1725397097084,0.011,58239.0,58238.0,0.77279323]
[1725397097498,0.011,58239.0,58238.0,0.90364107]
[1725397097689,0.011,58239.0,58238.0,0.77279323]
[1725397097891,0.011,58239.0,58238.0,0.90364029]
[1725397098089,0.011,58239.0,58238.0,0.77279323]
[1725397099094,0.011,58239.0,58238.0,0.77279668]
[1725397099799,0.06251355,58239.0,58238.0,0.77279668]
[1725397099999,0.011,58239.0,58238.0,0.63279668]
[1725397100194,0.06251347,58239.0,58238.0,0.76364476]
[1725397100400,0.011,58239.0,58238.0,0.76364476]
[1725397100693,0.06251277,58239.0,58238.0,0.76364476]
[1725397100893,0.011,58239.0,58238.0,0.63279668]
[1725397101097,0.06251257,58239.0,58238.0,0.7636424]
[1725397101296,0.06251257,58239.0,58238.0,0.67792172]
[1725397101603,0.06251253,58239.0,58238.0,0.67792172]
[1725397101897,0.06251121,58239.0,58238.0,0.67791821]
[1725397102088,0.011,58239.0,58238.0,0.67791821]
[1725397102792,0.06251121,58239.0,58238.0,0.67791821]
[1725397102988,0.06251121,58239.0,58238.0,0.57791821]
[1725397103193,0.06251121,58239.0,58238.0,0.547076]
[1725397103896,0.14838521,58239.0,58238.0,0.4612]
[1725397106104,0.096874,58239.0,58238.0,0.4612]
[1725397109102,0.18670885,58239.0,58238.0,0.4612]
[1725397109503,0.257649,58233.0,58232.0,0.10320535]
[1725397109705,0.171786,58226.0,58225.0,0.004]
[1725397110003,0.085896,58224.0,58223.0,0.0004]
[1725397110202,0.086296,58224.0,58223.0,0.0004]
[1725397110512,0.172192,58224.0,58223.0,0.0004]
[1725397110806,0.084899,58222.0,58221.0,0.22008001]
[1725397111006,0.085299,58222.0,58221.0,0.22008001]
[1725397111205,0.11314857,58222.0,58221.0,0.1]
[1725397111397,0.11214857,58222.0,58221.0,0.1]
[1725397112004,0.11214857,58222.0,58221.0,0.001]
[1725397113503,0.11214857,58222.0,58221.0,0.003]
[1725397116404,0.19804757,58222.0,58221.0,0.003]
[1725397116606,0.30075275,58222.0,58221.0,0.003]
[1725397117008,0.19804757,58222.0,58221.0,0.003]
[1725397117207,0.30075275,58222.0,58221.0,0.003]
[1725397117509,0.19804757,58222.0,58221.0,0.003]
[1725397117705,0.170198,58222.0,58221.0,0.003]
[1725397118311,0.085908,58216.0,58215.0,0.004]
[1725397118505,0.085914,58212.0,58211.0,0.085915]
[1725397118711,0.085914,58212.0,58211.0,0.325915]
[1725397118906,0.086314,58212.0,58211.0,0.325915]
[1725397119612,0.078314,58212.0,58211.0,0.325915]
[1725397120407,0.079314,58212.0,58211.0,0.337915]
[1725397121115,0.080314,58212.0,58211.0,0.264]
[1725397127618,0.0024,58212.0,58211.0,0.349915]
[1725397128418,0.0024,58212.0,58211.0,0.264]
[1725397128716,0.088314,58212.0,58211.0,0.264]
[1725397131108,0.0024,58212.0,58211.0,0.349915]
[1725397134019,0.0024,58212.0,58211.0,0.209915]
[1725397142029,0.0024,58212.0,58211.0,0.44374696]
[1725397142429,0.0024,58212.0,58211.0,0.34080688]
[1725397146926,0.0024,58212.0,58211.0,0.44371688]
[1725397147134,0.0024,58212.0,58211.0,1.16531688]
[1725397147537,0.088314,58212.0,58211.0,0.97940188]
[1725397147833,0.174228,58212.0,58211.0,0.84851]
[1725397148227,1.674228,58212.0,58211.0,0.84851]
[1725397148421,1.588314,58212.0,58211.0,0.84851]
[1725397148625,1.674228,58212.0,58211.0,0.84851]
[1725397152239,0.174228,58212.0,58211.0,0.84851]
[1725397152737,1.77809263,58212.0,58211.0,0.48771]
[1725397152945,2.97936663,58212.0,58211.0,0.12691]
[1725397153238,0.171842,58207.0,58206.0,0.00025761]
[1725397153440,0.171842,58207.0,58206.0,0.10025761]
[1725397153626,0.172242,58207.0,58206.0,0.10025761]
[1725397154840,0.172242,58207.0,58206.0,0.10425761]
[1725397155438,0.172242,58207.0,58206.0,0.10825761]
[1725397155741,0.172242,58207.0,58206.0,0.00825761]
[1725397156336,0.302442,58207.0,58206.0,0.00825761]
[1725397157137,0.302442,58207.0,58206.0,0.05968809]
[1725397157337,0.35387089,58207.0,58206.0,0.05968809]
[1725397158230,0.35387089,58207.0,58206.0,0.00825761]
[1725397159344,0.302442,58207.0,58206.0,0.00825761]
[1725397162346,0.35387089,58207.0,58206.0,0.00825761]
[1725397162758,0.43979189,58207.0,58206.0,0.00825761]
[1725397163950,0.35387089,58207.0,58206.0,0.10825761]
[1725397164149,0.302442,58207.0,58206.0,0.10825761]
[1725397164952,0.302442,58207.0,58206.0,0.19418061]
[1725397164953,0.152321,58207.0,58206.0,0.19418061]
[1725397165646,0.152321,58207.0,58206.0,0.10825761]
[1725397168960,0.152321,58207.0,58206.0,0.00825761]
[1725397170347,0.05142889,58209.0,58208.0,0.17184]
[1725397170556,0.0004,58216.0,58214.0,0.171822]
[1725397170755,0.00025761,58217.0,58215.0,0.171818]
[1725397170961,0.068517,58225.0,58223.0,0.1]
[1725397171156,0.08564738,58226.0,58224.0,0.995296]
[1725397171355,0.06849608,58238.0,58232.0,0.085884]
[1725397171555,0.11987622,58238.0,58232.0,0.547084]
[1725397171751,0.06849608,58238.0,58232.0,0.5979395]
[1725397171952,0.12013383,58238.0,58232.0,0.546684]
[1725397172262,0.06875369,58238.0,58234.0,0.0004]
[1725397172951,0.06875369,58238.0,58237.0,0.0004]
[1725397173160,0.06875369,58238.0,58237.0,0.3612]
[1725397174159,0.07475369,58238.0,58237.0,0.3622]
[1725397174358,0.08175369,58238.0,58237.0,0.3622]
[1725397174661,0.01325761,58238.0,58237.0,0.3622]
[1725397177258,0.01025761,58238.0,58237.0,0.3622]
[1725397177563,0.09613361,58238.0,58237.0,0.0014]
[1725397177767,0.22003361,58238.0,58237.0,0.0004]
[1725397177965,0.21603361,58238.0,58237.0,0.0004]
[1725397178164,0.22203361,58238.0,58237.0,0.0004]
[1725397178870,0.27321739,58238.0,58237.0,0.0004]
[1725397179272,1.77310401,58238.0,58237.0,0.0004]
[1725397179466,1.72792023,58238.0,58237.0,0.0014]
[1725397180169,0.09813361,58238.0,58237.0,0.2414]
[1725397180369,0.01225761,58238.0,58237.0,0.688077]
[1725397181872,0.01225761,58238.0,58237.0,0.773954]
[1725397182271,0.01225761,58238.0,58237.0,1.889074]
[1725397182473,0.01225761,58238.0,58237.0,2.129074]
[1725397182863,0.06824504,58241.0,58240.0,0.171746]
[1725397183080,0.06824504,58241.0,58240.0,1.288066]
[1725397183981,0.00025682,58246.0,58241.0,0.085871]
[1725397184281,0.00025682,58246.0,58245.0,0.6012]
[1725397184470,0.00025682,58246.0,58245.0,0.687065]
[1725397186483,0.00725682,58246.0,58245.0,1.202145]
[1725397187273,0.00025682,58246.0,58245.0,1.202145]
[1725397187663,0.00025682,58246.0,58245.0,0.687065]
[1725397188374,0.00025682,58246.0,58245.0,1.802145]
[1725397188863,0.002,58253.0,58252.0,0.085855]
[1725397189065,0.002,58253.0,58252.0,0.687055]
[1725397190588,0.009,58253.0,58252.0,0.688055]
[1725397191783,0.016,58253.0,58252.0,0.689055]
[1725397195886,0.016,58253.0,58252.0,0.69289092]
[1725397196394,0.016,58253.0,58252.0,0.689055]
[1725397197097,0.101853,58253.0,58252.0,0.3632]
[1725397197396,0.101853,58253.0,58252.0,0.6032]
[1725397197397,0.016,58253.0,58252.0,0.6032]
[1725397197694,0.016,58253.0,58252.0,0.689055]
[1725397202398,0.016,58253.0,58252.0,1.80789479]
[1725397202599,0.016,58253.0,58252.0,1.93329479]
[1725397203002,0.016,58253.0,58252.0,2.01914979]
[1725397203500,0.016,58253.0,58252.0,0.77874979]
[1725397203898,0.016,58253.0,58252.0,1.89374979]
[1725397204206,0.004,58262.0,58261.0,0.085842]
[1725397204395,0.085837,58265.0,58261.0,0.686642]
[1725397204701,0.085837,58265.0,58264.0,0.24]
[1725397205495,0.0651,58267.0,58264.0,0.325837]
[1725397205708,0.0651,58267.0,58266.0,0.3608]
[1725397206205,0.150933,58267.0,58264.0,0.24]
[1725397206407,0.085835,58266.0,58264.0,0.24]
[1725397206704,0.003,58265.0,58264.0,0.241]
[1725397207105,0.084835,58266.0,58264.0,0.326837]
[1725397207604,0.0651,58267.0,58264.0,0.24]
[1725397207804,0.095834,58266.0,58264.0,0.242]
[1725397208107,0.095834,58266.0,58264.0,0.327837]
[1725397208301,0.01,58266.0,58265.0,0.085836]
[1725397209304,0.009,58266.0,58265.0,0.085836]
[1725397209806,0.006,58266.0,58265.0,0.085836]
[1725397210111,0.0651,58267.0,58266.0,0.085834]
[1725397211508,0.0651,58267.0,58262.0,0.3608]
[1725397211814,0.151933,58267.0,58266.0,0.2408]
[1725397212221,0.157933,58267.0,58266.0,0.2408]
[1725397213307,0.156933,58267.0,58266.0,0.2408]
[1725397214515,0.396933,58267.0,58266.0,0.0008]
[1725397215216,0.482766,58267.0,58266.0,0.0008]
[1725397215604,0.482766,58267.0,58257.0,0.3608]
[1725397215605,0.085843,58260.0,58259.0,0.085844]
[1725397215917,0.175843,58260.0,58259.0,0.085844]
[1725397216708,0.085846,58258.0,58257.0,0.3608]
[1725397217007,0.081846,58258.0,58257.0,0.3608]
[1725397217212,0.171696,58257.0,58256.0,0.00025761]
[1725397217419,0.171696,58257.0,58252.0,0.44638815]
[1725397217420,0.171706,58253.0,58252.0,0.44826815]
[1725397217611,0.32311785,58253.0,58252.0,0.44638815]
[1725397217920,1.911706,58253.0,58252.0,0.44638815]
[1725397218105,1.910706,58253.0,58252.0,0.44638815]
[1725397218417,1.906706,58253.0,58252.0,0.3608]
[1725397219009,3.107559,58253.0,58252.0,0.3608]
[1725397219310,0.170722,58248.0,58247.0,0.00025761]
[1725397219517,0.82290421,58248.0,58247.0,0.00025761]
[1725397219716,1.885562,58248.0,58247.0,0.00025761]
[1725397220508,1.25106221,58248.0,58247.0,0.00025761]
[1725397220704,0.324861,58248.0,58247.0,0.00025761]
[1725397220909,1.57712321,58248.0,58247.0,0.00025761]
[1725397221325,1.57912321,58248.0,58247.0,0.00025761]
[1725397222120,0.17174,58242.0,58241.0,0.06851105]
[1725397222424,0.77254,58242.0,58241.0,0.06851105]
[1725397222625,1.88762,58242.0,58241.0,0.06851105]
[1725397223315,1.89202,58242.0,58241.0,0.06951105]
[1725397223821,1.28802,58242.0,58241.0,0.06851105]
[1725397224011,1.29202,58242.0,58241.0,0.06951105]
[1725397224417,1.29202,58242.0,58241.0,0.07351105]
[1725397225119,1.29202,58242.0,58241.0,0.06951105]
[1725397225411,1.30602,58242.0,58241.0,0.06951105]
[1725397226225,0.79094,58242.0,58241.0,0.06951105]
[1725397226917,1.99189,58242.0,58241.0,0.06951105]
[1725397227117,0.171754,58237.0,58236.0,0.00025761]
[1725397227324,0.772954,58237.0,58236.0,0.00025761]
[1725397227524,1.888114,58237.0,58236.0,0.00025761]
[1725397227717,3.388114,58237.0,58236.0,0.00025761]
[1725397228319,3.398114,58237.0,58236.0,0.00125761]
[1725397228723,3.158114,58237.0,58236.0,0.00125761]
[1725397228921,2.28689514,58237.0,58236.0,0.00125761]
[1725397229221,2.04689514,58237.0,58236.0,0.00125761]
[1725397229416,2.28689514,58237.0,58236.0,0.00125761]
[1725397229612,2.29289514,58237.0,58236.0,0.00225761]
[1725397230723,2.37877214,58237.0,58236.0,0.00225761]
[1725397230925,2.89393214,58237.0,58236.0,0.00225761]
[1725397233516,2.53313214,58237.0,58236.0,0.00225761]
[1725397233722,2.89393214,58237.0,58236.0,0.00225761]
[1725397233920,2.37877214,58237.0,58236.0,0.00225761]
[1725397235121,2.01797214,58237.0,58236.0,0.00225761]
[1725397235321,2.37877214,58237.0,58236.0,0.00225761]
[1725397235923,2.01797214,58237.0,58236.0,0.00225761]
[1725397236124,2.37877214,58237.0,58236.0,0.00225761]
[1725397237125,2.49877214,58237.0,58236.0,0.00225761]
[1725397238530,2.13797214,58237.0,58236.0,0.00225761]
[1725397238731,2.49877214,58237.0,58236.0,0.00225761]
[1725397243147,0.257667,58229.0,58228.0,0.004]
[1725397243435,0.326289,58229.0,58224.0,0.085895]
[1725397243638,0.2404,58225.0,58224.0,0.085895]
[1725397243938,0.085898,58223.0,58222.0,0.446699]
[1725397244132,0.086298,58223.0,58222.0,0.446699]
[1725397244431,0.086298,58223.0,58221.0,0.0646]
[1725397244432,0.171798,58222.0,58221.0,0.11579036]
[1725397244634,0.411798,58222.0,58221.0,0.05119036]
[1725397244827,0.412198,58222.0,58221.0,0.05119036]
[1725397245032,0.412198,58222.0,58221.0,0.04419036]
[1725397246127,1.919198,58222.0,58221.0,0.04519036]
[1725397246337,1.92300548,58222.0,58221.0,0.04519036]
[1725397247537,1.92300548,58222.0,58221.0,0.001]
[1725397250836,1.593299,58222.0,58221.0,0.086901]
[1725397251035,0.093299,58222.0,58221.0,0.086901]
[1725397251337,0.333299,58222.0,58221.0,0.086901]
[1725397252730,0.333299,58222.0,58221.0,0.001]
[1725397260063,0.084904,58219.0,58218.0,0.085905]
[1725397260255,0.085304,58219.0,58218.0,0.085905]
[1725397260453,0.0004,58219.0,58218.0,0.325905]
[1725397260950,0.086304,58219.0,58218.0,0.085905]
[1725397261559,0.256715,58218.0,58217.0,0.00025761]
[1725397261763,0.257115,58218.0,58217.0,0.00025761]
[1725397262164,1.847115,58218.0,58217.0,0.00025761]
[1725397262375,2.962435,58218.0,58217.0,0.00025761]
[1725397262760,2.961435,58218.0,58217.0,0.00025761]
[1725397264368,2.969435,58218.0,58217.0,0.00125761]
[1725397264561,3.330235,58218.0,58217.0,0.00125761]
[1725397265064,3.240235,58218.0,58217.0,0.00125761]
[1725397265267,2.124915,58218.0,58217.0,0.00125761]
[1725397265867,2.184915,58218.0,58217.0,0.00125761]
[1725397269266,0.171834,58210.0,58209.0,0.004]
[1725397269565,0.17184,58208.0,58207.0,0.3608]
[1725397269759,0.17224,58208.0,58207.0,0.3608]
[1725397269965,1.67224,58208.0,58207.0,0.3608]
[1725397271076,1.67124,58208.0,58207.0,0.3608]
[1725397271466,1.67124,58208.0,58207.0,0.3638]
[1725397274180,1.67124,58208.0,58207.0,0.003]
[1725397275573,1.58532,58208.0,58207.0,0.003]
[1725397279881,1.67124,58208.0,58207.0,0.003]
[1725397280384,1.58532,58208.0,58207.0,0.003]
[1725397282084,1.5004,58208.0,58207.0,0.088921]
[1725397283291,0.0004,58208.0,58207.0,1.530242]
[1725397283681,0.05138096,58211.0,58210.0,0.085917]
[1725397283880,0.05138096,58211.0,58210.0,0.773034]
[1725397284089,0.00025761,58213.0,58212.0,0.171828]
[1725397284378,0.00025761,58213.0,58212.0,0.687588]
[1725397284583,0.00025761,58213.0,58212.0,1.287588]
[1725397284788,0.00025761,58213.0,58212.0,1.201674]
[1725397284984,0.00025761,58213.0,58212.0,0.841674]
[1725397285788,0.00225761,58213.0,58212.0,0.841674]
[1725397286089,0.00225761,58213.0,58212.0,0.601674]
[1725397287086,0.00025761,58213.0,58212.0,0.601674]
[1725397287992,0.00025761,58213.0,58212.0,0.086314]
[1725397288384,0.00025761,58213.0,58212.0,0.09024587]
[1725397289590,0.00025761,58213.0,58212.0,0.33024587]
[1725397293797,0.08616961,58213.0,58212.0,0.33024587]
[1725397299997,1.58616961,58213.0,58212.0,0.33024587]
[1725397300708,0.08616961,58213.0,58212.0,0.33024587]
[1725397301806,0.17208161,58213.0,58212.0,0.0004]
[1725397302108,0.71879361,58213.0,58212.0,0.0004]
[1725397302299,0.74879361,58213.0,58212.0,0.0004]
[1725397302810,2.24879361,58213.0,58212.0,0.0004]
[1725397303414,2.21879361,58213.0,58212.0,0.0004]
[1725397304004,2.36079361,58213.0,58212.0,0.0004]
[1725397304309,2.43079361,58213.0,58212.0,0.0004]
[1725397305412,2.36079361,58213.0,58212.0,0.0004]
[1725397308415,2.44079361,58213.0,58212.0,0.0004]
[1725397309319,3.55615361,58213.0,58212.0,0.0004]
[1725397310516,0.171852,58204.0,58203.0,0.10677899]
[1725397310719,0.773052,58204.0,58203.0,0.10277899]
[1725397311710,0.774052,58204.0,58203.0,0.10877899]
[1725397313116,0.774052,58204.0,58203.0,0.006]
[1725397313807,0.839452,58204.0,58203.0,0.006]
[1725397314015,0.97675764,58204.0,58203.0,0.006]
[1725397314213,0.925378,58204.0,58203.0,0.006]
[1725397315614,0.92924783,58204.0,58203.0,0.006]
[1725397317024,0.171854,58203.0,58202.0,0.00025761]
[1725397317214,0.167854,58203.0,58202.0,0.00025761]
[1725397317413,0.168254,58203.0,58202.0,0.00025761]
[1725397319317,0.168254,58203.0,58202.0,0.00225761]
[1725397319318,0.169254,58203.0,58202.0,0.00225761]
[1725397320625,0.22060033,58203.0,58202.0,0.00225761]
[1725397320812,0.169254,58203.0,58202.0,0.00225761]
[1725397325328,0.083327,58203.0,58202.0,0.00225761]
[1725397326014,0.183327,58203.0,58202.0,0.00225761]
[1725397326424,0.183327,58203.0,58202.0,0.08818661]
[1725397326622,0.0014,58203.0,58202.0,0.08818661]
[1725397326818,0.0014,58203.0,58202.0,1.63012661]
[1725397327023,0.0014,58203.0,58202.0,1.71605561]
[1725397327220,0.0014,58203.0,58202.0,1.63012661]
[1725397327927,0.0014,58203.0,58202.0,1.87012661]
[1725397328125,0.0014,58203.0,58202.0,1.95605561]
[1725397328627,0.06847074,58207.0,58206.0,0.085923]
[1725397328816,0.06847074,58207.0,58206.0,0.326323]
[1725397329018,0.06847074,58207.0,58206.0,1.441723]
[1725397329826,0.06847074,58207.0,58206.0,1.527646]
[1725397330025,0.06847074,58207.0,58206.0,1.528646]
[1725397330625,0.00025761,58213.0,58212.0,0.085914]
[1725397330925,0.00025761,58213.0,58212.0,1.047914]
[1725397331130,0.00025761,58213.0,58212.0,2.163274]
[1725397332930,0.00325761,58213.0,58212.0,2.163274]
[1725397334125,0.00325761,58213.0,58212.0,2.249188]
[1725397334332,0.004,58223.0,58222.0,0.085899]
[1725397334521,0.085891,58228.0,58225.0,0.085894]
[1725397334718,1.5,58229.0,58227.0,0.3612]
[1725397334921,1.5,58229.0,58228.0,0.08629]
[1725397335127,1.5,58229.0,58228.0,0.08589]
[1725397335322,0.00378208,58233.0,58228.0,0.08589]
[1725397335524,0.085883,58233.0,58232.0,0.0004]
[1725397335931,1.585883,58233.0,58232.0,0.0004]
[1725397336628,1.671766,58233.0,58232.0,0.0004]
[1725397336929,2.046566,58233.0,58232.0,0.0014]
[1725397337123,0.17178,58228.0,58227.0,0.3608]
[1725397337326,0.085896,58224.0,58223.0,0.00025761]
[1725397337527,0.412192,58224.0,58223.0,0.00025761]
[1725397337726,1.979392,58224.0,58223.0,0.00025761]
[1725397338525,1.992392,58224.0,58223.0,0.00125761]
[1725397343840,1.99630735,58224.0,58223.0,0.00125761]
[1725397347144,2.08220335,58224.0,58223.0,0.00125761]
[1725397351247,1.99630735,58224.0,58223.0,0.00125761]
[1725397354555,2.08220335,58224.0,58223.0,0.00125761]
[1725397354753,1.99630735,58224.0,58223.0,0.00125761]
[1725397354943,2.08220335,58224.0,58223.0,0.00125761]
[1725397355347,2.44300335,58224.0,58223.0,0.00125761]
[1725397355552,2.08220335,58224.0,58223.0,0.00125761]
[1725397355954,1.94220335,58224.0,58223.0,0.00125761]
[1725397356651,2.00220335,58224.0,58223.0,0.00125761]
[1725397356856,2.02220335,58224.0,58223.0,0.00125761]
[1725397358046,2.16220335,58224.0,58223.0,0.00125761]
[1725397364863,2.52300335,58224.0,58223.0,0.00125761]
[1725397368064,2.55085572,58224.0,58223.0,0.00125761]
[1725397371653,2.19005572,58224.0,58223.0,0.00125761]
[1725397371855,2.55085572,58224.0,58223.0,0.00125761]
[1725397372461,2.63675172,58224.0,58223.0,0.00125761]
[1725397372863,2.55085572,58224.0,58223.0,0.00125761]
[1725397373164,2.63675172,58224.0,58223.0,0.00125761]
[1725397374761,2.60889935,58224.0,58223.0,0.00125761]
[1725397374967,2.73974433,58224.0,58223.0,0.00125761]
[1725397375164,2.63675465,58224.0,58223.0,0.00125761]
[1725397377170,2.63675456,58224.0,58223.0,0.00125761]
[1725397377771,3.75199456,58224.0,58223.0,6.1e-07]
[1725397377962,0.343632,58216.0,58215.0,0.10289402]
[1725397378190,0.934832,58216.0,58215.0,0.10289402]
[1725397379166,0.938832,58216.0,58215.0,0.10289402]
[1725397379769,0.578032,58216.0,58215.0,0.10289402]
[1725397379969,0.938832,58216.0,58215.0,0.10289402]
[1725397380472,0.492124,58216.0,58215.0,0.10289402]
[1725397380671,0.362124,58216.0,58215.0,0.10289402]